bitfinex/quotes_SOLUSD_20260202
["timestamp","ask_amount","ask_price","bid_price","bid_amount"]
[1770000313327,19.22162264,101.35,101.3,23.26805452]
[1770000313636,50.73464466,101.36,101.31,13.39678306]
[1770000313835,19.21948392,101.37,101.33,4.04242671]
[1770000314139,23.33371059,101.37,101.33,4.04242671]
[1770000314738,23.33371059,101.37,101.32,9.86924595]
[1770000314739,9.35435635,101.36,101.32,9.86924595]
[1770000314938,9.35435635,101.35,101.31,13.9130671]
[1770000315325,13.46858302,101.36,101.32,9.86971806]
[1770000315717,13.46858302,101.35,101.31,4.04242671]
[1770000316018,9.35435635,101.32,101.29,0.1]
[1770000316227,19.22438929,101.32,101.29,0.1]
[1770000316522,19.24210207,101.32,101.29,0.1]
[1770000316832,19.24210207,101.32,101.29,4.14242671]
[1770000317034,19.24210207,101.32,101.27,135.42323417]
[1770000317035,13.4862958,101.31,101.27,135.42323417]
[1770000317237,9.37206913,101.3,101.27,135.42323417]
[1770000317539,19.24210207,101.32,101.28,4.04242671]
[1770000317841,13.98358059,101.33,101.28,13.91589915]
[1770000318013,13.64733998,101.36,101.28,13.91589915]
[1770000318014,19.23833619,101.36,101.32,4.04242671]
[1770000318213,9.86626706,101.36,101.32,13.41449584]
[1770000318719,23.35256286,101.36,101.32,4.04242671]
[1770000319035,9.86626706,101.36,101.32,4.04242671]
[1770000319228,23.35141616,101.37,101.32,23.28409418]
[1770000319630,19.23612639,101.38,101.33,4.04242671]
[1770000319819,13.4862958,101.37,101.32,19.24166747]
[1770000320020,9.37206913,101.36,101.32,13.91203216]
[1770000320223,19.23612639,101.38,101.33,9.37206913]
[1770000320428,23.34935258,101.39,101.35,4.04242671]
[1770000321137,23.34935258,101.39,101.33,4.04242671]
[1770000321138,13.4862958,101.37,101.33,4.04242671]
[1770000321729,9.37206913,101.36,101.32,9.8688237]
[1770000321938,13.4862958,101.36,101.31,23.2848578]
[1770000322444,13.4862958,101.34,101.3,4.04242671]
[1770000322636,19.23886735,101.35,101.31,4.04242671]
[1770000323248,9.86679822,101.35,101.31,13.41449584]
[1770000323444,19.23809937,101.36,101.32,4.04242671]
[1770000323640,19.23809937,101.36,101.31,23.28479947]
[1770000323835,43.90266132,101.36,101.31,4.04242671]
[1770000324143,9.37206913,101.32,101.27,139.46566088]
[1770000324446,23.35648605,101.32,101.27,149.34017974]
[1770000324633,9.37206913,101.31,101.27,139.46566088]
[1770000324946,9.37206913,101.3,101.27,139.46566088]
[1770000325129,9.37206913,101.28,101.27,76.29006695]
[1770000325332,2.91302337,101.27,101.22,14.0213247]
[1770000325643,9.37206913,101.26,101.23,9.87845367]
[1770000325824,9.37206913,101.28,101.24,4.04242671]
[1770000326023,9.37206913,101.3,101.25,13.41449584]
[1770000326219,29.99981328,101.31,101.2,4.04242671]
[1770000326220,2.59981328,101.25,101.2,4.04242671]
[1770000326448,9.37206913,101.23,101.2,4.04242671]
[1770000326741,19.24976372,101.24,101.2,4.04242671]
[1770000327750,9.37206913,101.22,101.18,14.02573961]
[1770000327953,9.37206913,101.22,101.19,9.8816791]
[1770000328128,9.87769459,101.24,101.2,13.92370532]
[1770000328449,19.24976372,101.24,101.2,4.04242671]
[1770000328628,9.37206913,101.23,101.18,14.02536239]
[1770000328824,19.24976372,101.24,101.19,4.04242671]
[1770000329028,9.37206913,101.23,101.2,4.04242671]
[1770000329253,9.37206913,101.22,101.18,4.14242671]
[1770000329451,9.37206913,101.19,101.17,107.10138929]
[1770000329769,2.49989014,101.21,101.13,2.47215037]
[1770000329770,1.19891801,101.17,101.13,2.47215037]
[1770000329936,9.37206913,101.16,101.13,2.47215037]
[1770000330132,9.37206913,101.17,101.13,2.47215037]
[1770000330326,9.37206913,101.18,101.14,4.04242671]
[1770000330528,20.45435301,101.19,101.14,23.30173596]
[1770000330751,10.57148542,101.15,101.09,4.04242671]
[1770000330931,9.37206913,101.13,101.09,4.04242671]
[1770000331129,9.37206913,101.14,101.09,13.93453146]
[1770000331329,4.27527085,101.18,101.12,4.04242671]
[1770000331330,9.37206913,101.16,101.12,4.04242671]
[1770000331530,9.37206913,101.15,101.12,3.54242671]
[1770000331751,9.37206913,101.15,101.1,9.37206913]
[1770000331935,9.37206913,101.16,101.11,9.37206913]
[1770000332257,11.0719899,101.16,101.1,9.37206913]
[1770000332644,11.0719899,101.16,101.11,19.2622877]
[1770000332836,20.95738812,101.16,101.11,19.2622877]
[1770000333156,11.07248858,101.14,101.09,9.89158489]
[1770000333336,11.07248858,101.12,101.05,25.05267828]
[1770000333536,9.37206913,101.12,101.07,23.30798035]
[1770000333727,11.07298153,101.15,101.1,13.41449584]
[1770000333933,9.88539822,101.16,101.1,23.30542407]
[1770000334249,11.07298153,101.14,101.09,4.04242671]
[1770000334433,9.37206913,101.11,101.06,13.41449584]
[1770000334633,19.26233661,101.11,101.06,23.30927893]
[1770000335144,19.26233661,101.11,101.05,25.05208036]
[1770000335145,9.37206913,101.07,101.05,0.3132363]
[1770000335346,9.37206913,101.09,101.05,0.3132363]
[1770000335652,9.37206913,101.08,101.05,0.3132363]
[1770000335828,10.76104929,101.08,101.03,9.37206913]
[1770000336033,34.61581391,101.11,101.01,9.89969085]
[1770000336034,9.37206913,101.06,101.01,9.89969085]
[1770000336228,10.76104929,101.04,100.99,19.27309096]
[1770000336439,10.76104929,101.04,100.98,4.04242671]
[1770000336642,10.76104929,101.04,100.99,9.90197049]
[1770000336962,10.76159948,101.02,100.98,9.90271832]
[1770000337162,10.76159948,101.03,100.98,9.90271832]
[1770000337454,34.63664197,101.05,100.95,85.68111144]
[1770000337455,10.76159948,101.01,100.95,109.00122323]
[1770000337658,10.76214336,101.0,100.95,13.41449584]
[1770000338032,10.76268099,101.04,100.98,13.36284547]
[1770000338250,10.76268099,101.06,101.01,3.99077634]
[1770000338452,36.02359252,101.06,101.0,9.37206913]
[1770000338644,9.8944491,101.07,101.01,13.89022956]
[1770000338828,1.39114331,101.07,101.01,13.36284547]
[1770000339032,1.39114331,101.07,101.01,23.26278433]
[1770000339257,10.76321244,101.07,101.02,9.37206913]
[1770000339453,1.39114331,101.09,101.03,13.36284547]
[1770000339760,49.43874335,101.14,101.01,34.64996361]
[1770000339761,10.76373779,101.08,101.02,9.37206913]
[1770000339957,9.37206913,101.1,101.05,9.37206913]
[1770000340162,10.76373779,101.09,101.04,9.37206913]
[1770000340455,10.76373779,101.08,101.03,9.37206913]
[1770000340632,1.39166866,101.06,101.0,23.26368212]
[1770000340838,10.76373779,101.06,101.0,23.26368212]
[1770000341037,27.46,101.08,101.04,13.36284547]
[1770000341237,10.76425711,101.1,101.04,13.36284547]
[1770000341543,9.37206913,101.09,101.04,13.36284547]
[1770000341740,10.76477645,101.06,101.0,48.01615736]
[1770000341941,9.37206913,101.07,101.02,3.99077634]
[1770000342151,1.39270732,101.08,101.03,13.36284547]
[1770000342152,9.37206913,101.08,101.03,13.36284547]
[1770000342344,36.83206913,101.09,101.04,13.36284547]
[1770000342541,38.22477645,101.09,101.03,9.37206913]
[1770000342746,10.76528983,101.07,101.02,9.89867241]
[1770000342952,10.76528983,101.07,101.03,9.89799843]
[1770000343154,9.89358513,101.08,100.99,4.27527085]
[1770000343155,10.76528983,101.04,100.99,13.36284547]
[1770000343349,10.76528983,101.04,100.98,9.90230301]
[1770000343350,9.37206913,101.03,101.0,9.90082213]
[1770000343548,9.37206913,101.03,100.92,76.5292118]
[1770000343549,9.37206913,101.06,101.01,13.36284547]
[1770000344161,1.39372819,101.04,100.99,9.37206913]
[1770000344331,9.37206913,101.01,100.96,13.36284547]
[1770000344833,9.37206913,101.03,100.98,13.36284547]
[1770000345039,10.76629898,101.02,100.97,9.90388509]
[1770000345244,10.76629898,101.02,100.97,13.89466143]
[1770000345563,9.37206913,101.01,100.97,3.99077634]
[1770000345761,9.37206913,101.01,100.96,19.27659478]
[1770000345762,10.76679487,101.02,100.96,23.26737112]
[1770000345966,9.37206913,101.0,100.96,13.89530199]
[1770000346163,11.29286633,101.03,100.97,3.99077634]
[1770000346350,9.37206913,101.03,100.98,13.36284547]
[1770000346551,10.76679487,101.06,101.01,3.99077634]
[1770000346757,20.66214044,101.07,101.02,9.89902989]
[1770000346945,20.66214044,101.07,101.01,13.36284547]
[1770000346946,10.76776964,101.06,101.01,23.26250426]
[1770000347151,1.39570051,101.06,101.01,23.26250426]
[1770000347462,9.37206913,101.04,100.99,23.33477871]
[1770000347666,10.76776964,101.05,101.0,13.43336119]
[1770000347844,11.29055031,101.07,101.01,23.33328866]
[1770000348043,9.37206913,101.03,100.97,4.06129206]
[1770000348364,9.37206913,101.02,100.98,13.96364833]
[1770000348551,10.76824864,101.03,100.98,13.96380085]
[1770000348753,9.37206913,101.03,100.98,23.33586998]
[1770000348941,20.66688518,101.03,100.98,4.06129206]
[1770000349141,10.76872214,101.01,100.97,9.90392646]
[1770000349362,10.76872214,101.01,100.94,49.6318033]
[1770000349363,10.76872214,101.0,100.94,13.53336119]
[1770000349546,10.76872214,101.0,100.95,4.06129206]
[1770000349747,9.37206913,101.01,100.97,13.96466182]
[1770000350161,10.7691902,101.03,100.98,9.90289997]
[1770000350460,9.37206913,101.04,100.99,4.06129206]
[1770000350656,1.39712107,101.05,101.01,9.9000099]
[1770000350657,9.37206913,101.05,101.01,9.9000099]
[1770000351048,19.26872848,101.05,101.0,13.96225937]
[1770000351244,9.37206913,101.04,101.0,13.96225937]
[1770000351447,9.37206913,101.05,101.01,4.06129206]
[1770000351756,9.37206913,101.04,101.0,9.90096731]
[1770000352356,10.77011026,101.05,101.0,23.3343285]
[1770000352562,9.37206913,101.04,101.0,4.06129206]
[1770000352759,20.6665007,101.05,101.0,13.96190817]
[1770000352945,10.77011026,101.05,101.0,23.3339773]
[1770000353138,1.39804113,101.05,101.0,48.08645254]
[1770000353556,20.66625242,101.05,101.0,13.96190817]
[1770000353860,9.37206913,101.04,101.0,4.06129206]
[1770000354170,19.26758345,101.06,101.01,4.06129206]
[1770000354343,20.66652362,101.06,101.01,13.43336119]
[1770000354545,10.7710093,101.06,101.01,13.43336119]
[1770000354965,9.37206913,101.07,101.02,4.06129206]
[1770000355142,9.37206913,101.06,101.02,4.06129206]
[1770000355345,9.37206913,101.04,101.0,13.9618555]
[1770000355581,9.37206913,101.03,100.99,9.90154194]
[1770000355862,9.37206913,101.05,101.01,13.96116057]
[1770000356168,1.39981868,101.06,101.01,48.08325445]
[1770000356349,9.37206913,101.06,101.02,4.06129206]
[1770000356547,9.37206913,101.05,101.01,9.89986851]
[1770000356854,9.37206913,101.05,101.01,13.96116057]
[1770000357667,10.77274626,101.04,100.98,38.18921131]
[1770000357847,9.37206913,101.04,101.0,9.9007521]
[1770000358047,9.37206913,101.04,101.0,13.96204416]
[1770000358246,20.66907045,101.05,101.01,9.89995935]
[1770000358464,9.37206913,101.03,101.0,4.06129206]
[1770000358770,20.66907045,101.05,101.0,13.9616548]
[1770000359146,20.66907045,101.05,101.01,9.89988403]
[1770000359549,9.37206913,101.06,101.02,4.06129206]
[1770000360352,9.37206913,101.08,101.04,4.06129206]
[1770000360554,1.40151596,101.13,101.07,4.06129206]
[1770000360757,20.66359344,101.12,101.07,4.06129206]
[1770000360955,9.37206913,101.13,101.08,4.06129206]
[1770000361152,9.37206913,101.1,101.06,13.95582617]
[1770000361464,15.66444773,101.11,101.07,13.95507352]
[1770000361666,25.55502334,101.11,101.07,4.06129206]
[1770000361874,6.2923786,101.11,101.08,9.89308004]
[1770000362368,17.06678337,101.11,101.06,13.43336119]
[1770000362571,6.2923786,101.11,101.07,13.95532092]
[1770000362768,25.55490544,101.11,101.07,13.95532092]
[1770000362963,25.55490544,101.11,101.07,4.06129206]
[1770000363367,6.2923786,101.11,101.07,23.32730072]
[1770000363668,6.1934186,101.11,101.0,77.00091211]
[1770000363869,10.97520573,101.17,101.11,4.06129206]
[1770000364168,1.4031366,101.14,101.09,9.37206913]
[1770000364369,9.37206913,101.12,101.08,4.06129206]
[1770000364549,9.37206913,101.12,101.07,9.89370181]
[1770000364550,9.37206913,101.11,101.07,4.06129206]
[1770000364751,1.4031366,101.12,101.07,4.06129206]
[1770000364950,9.37206913,101.11,101.08,4.06129206]
[1770000365152,9.37206913,101.12,101.08,4.06129206]
[1770000365348,9.37206913,101.11,101.06,4.06129206]
[1770000365591,9.37206913,101.1,101.06,13.95600831]
[1770000365774,36.01319133,101.13,101.08,4.06129206]
[1770000365962,36.01319133,101.13,101.04,13.95827263]
[1770000365963,10.77598839,101.09,101.04,13.95827263]
[1770000366163,9.37206913,101.08,101.05,4.06129206]
[1770000366682,9.37206913,101.09,101.05,13.95667094]
[1770000367379,10.77637299,101.08,101.03,4.06129206]
[1770000367673,9.37206913,101.04,101.01,3.9183732]
[1770000368257,9.37206913,101.05,101.01,3.9183732]
[1770000368574,9.37206913,101.07,101.03,3.9183732]
[1770000368778,9.37206913,101.06,101.03,3.9183732]
[1770000369102,9.37206913,101.04,101.0,3.9183732]
[1770000369478,9.37206913,101.04,101.01,9.9000099]
[1770000369672,9.37206913,101.04,100.99,3.9183732]
[1770000369973,9.37206913,101.06,101.02,3.9183732]
[1770000370178,9.37206913,101.05,101.01,3.9183732]
[1770000370622,11.30026997,101.07,101.01,3.9183732]
[1770000370888,27.48,101.08,101.04,3.9183732]
[1770000371196,19.26526137,101.08,101.04,3.9183732]
[1770000371701,9.37206913,101.07,101.02,13.81695426]
[1770000372001,9.37206913,101.06,101.02,13.81699137]
[1770000372204,36.03259754,101.08,101.02,13.81699137]
[1770000372205,19.26526137,101.08,101.04,3.9183732]
[1770000372382,9.37206913,101.07,101.04,3.9183732]
[1770000372703,19.26526137,101.08,101.04,13.81535494]
[1770000372883,19.26448408,101.09,101.05,3.9183732]
[1770000373409,9.37206913,101.11,101.07,3.9183732]
[1770000373899,9.37206913,101.1,101.07,3.9183732]
[1770000374394,19.26130963,101.12,101.08,3.9183732]
[1770000374596,19.26130963,101.12,101.06,9.37206913]
[1770000374597,9.37206913,101.1,101.06,3.9183732]
[1770000374780,9.8892405,101.12,101.04,9.37206913]
[1770000374781,9.37206913,101.08,101.05,3.9183732]
[1770000375202,9.37206913,101.09,101.06,3.9183732]
[1770000375584,19.26650311,101.07,101.02,3.9183732]
[1770000375794,9.37206913,101.06,101.03,13.81634109]
[1770000376005,9.37206913,101.07,101.04,13.81516034]
[1770000376375,9.41586472,101.08,101.05,3.9183732]
[1770000376802,27.48,101.12,101.05,3.9183732]
[1770000376803,9.89021857,101.11,101.05,3.9183732]
[1770000377010,9.41586472,101.09,101.05,3.9183732]
[1770000377519,19.30559299,101.12,101.07,3.9183732]
[1770000377686,19.30669376,101.11,101.07,3.9183732]
[1770000377892,19.30669376,101.11,101.07,13.81248447]
[1770000378193,9.41586472,101.1,101.07,3.9183732]
[1770000378617,9.41586472,101.11,101.08,3.9183732]
[1770000379088,9.41586472,101.09,101.05,13.81407823]
[1770000379289,9.41586472,101.08,101.05,3.9183732]
[1770000379512,1.40891959,101.1,101.03,3.9183732]
[1770000379513,9.41586472,101.06,101.03,3.9183732]
[1770000379697,9.41586472,101.06,101.03,13.81640992]
[1770000381194,36.89586472,101.09,101.05,3.9183732]
[1770000381494,9.41586472,101.11,101.07,3.9183732]
[1770000381693,19.30706855,101.1,101.07,3.9183732]
[1770000382089,9.41586472,101.09,101.06,9.89507484]
[1770000382300,9.41586472,101.1,101.06,13.81344804]
[1770000382489,19.30718881,101.1,101.06,13.81344804]
[1770000382689,9.41586472,101.1,101.07,9.89402175]
[1770000382892,9.41586472,101.11,101.07,13.81239495]
[1770000383109,9.41586472,101.12,101.08,3.9183732]
[1770000383419,9.41586472,101.11,101.07,38.54772689]
[1770000383593,9.41586472,101.09,101.07,9.89400315]
[1770000384409,9.41586472,101.1,101.06,13.81294809]
[1770000384807,9.41586472,101.09,101.06,3.9183732]
[1770000385003,9.41586472,101.09,101.06,13.81321791]
[1770000385398,9.41586472,101.11,101.07,3.9183732]
[1770000385792,9.41586472,101.1,101.07,3.9183732]
[1770000385992,23.15783343,101.11,101.07,3.9183732]
[1770000386200,9.41586472,101.14,101.09,3.9183732]
[1770000386599,23.15331821,101.15,101.1,3.9183732]
[1770000386802,23.35140197,101.17,101.12,3.9183732]
[1770000387316,9.61586472,101.17,101.12,13.33423792]
[1770000387490,0.2,101.17,101.13,3.9183732]
[1770000387693,0.2,101.17,101.15,3.9183732]
[1770000387694,1e-08,101.17,101.15,3.9183732]
[1770000388131,1e-08,101.17,101.15,38.51996419]
[1770000388289,1e-08,101.17,101.15,13.80419553]
[1770000388494,1e-08,101.17,101.16,3.9183732]
[1770000388999,1e-08,101.17,101.15,9.88582233]
[1770000389195,1e-08,101.17,101.15,13.80419553]
[1770000389610,1e-08,101.17,101.13,34.1348233]
[1770000389611,9.41586473,101.17,101.13,3.9183732]
[1770000389812,9.41586472,101.16,101.13,13.80662131]
[1770000390014,9.41586472,101.15,101.11,3.9183732]
[1770000390217,9.41586472,101.14,101.11,3.9183732]
[1770000390394,3.85094888,101.15,101.07,4.27527085]
[1770000390600,13.2668136,101.16,101.1,9.41586472]
[1770000390796,1e-08,101.17,101.12,9.41586472]
[1770000391093,1e-08,101.17,101.09,0.28432314]
[1770000391094,1e-08,101.17,101.13,9.41586472]
[1770000391312,1e-08,101.17,101.14,9.41586472]
[1770000391511,1e-08,101.17,101.15,9.41586472]
[1770000391717,1e-08,101.17,101.16,9.41586472]
[1770000391897,41.41082565,101.22,101.16,19.30119489]
[1770000392107,13.4668136,101.22,101.17,9.41586472]
[1770000392504,9.41586472,101.2,101.16,9.88533017]
[1770000392718,9.41586472,101.19,101.16,9.88533017]
[1770000393119,9.41586472,101.21,101.16,13.80370337]
[1770000393305,4.05094888,101.22,101.18,3.9183732]
[1770000393507,19.49540636,101.22,101.18,3.9183732]
[1770000394010,9.41586472,101.2,101.16,3.9183732]
[1770000394625,9.41586472,101.19,101.14,3.9183732]
[1770000394821,9.41586472,101.19,101.15,13.80416727]
[1770000395007,3.85094888,101.2,101.16,9.88516859]
[1770000395207,9.41586472,101.2,101.16,13.80354179]
[1770000395826,9.41586472,101.21,101.17,13.80203067]
[1770000396021,0.2,101.22,101.19,3.9183732]
[1770000396324,19.49562532,101.22,101.17,23.21789539]
[1770000396520,9.41586472,101.2,101.16,13.8034984]
[1770000396708,9.41586472,101.21,101.18,3.9183732]
[1770000397222,13.2668136,101.2,101.16,3.9183732]
[1770000397430,9.41586472,101.19,101.15,3.9183732]
[1770000398015,9.41586472,101.17,101.13,14.05293111]
[1770000398328,13.21147823,101.16,101.11,4.16505671]
[1770000398504,9.41586472,101.15,101.11,14.05459233]
[1770000398710,9.41586472,101.14,101.11,4.16505671]
[1770000398924,9.41586472,101.14,101.11,14.05521266]
[1770000399205,9.41586472,101.15,101.11,14.05521266]
[1770000399625,9.41586472,101.15,101.11,9.89015595]
[1770000399834,9.41586472,101.15,101.12,4.16505671]
[1770000400325,9.41586472,101.15,101.12,14.05421798]
[1770000400647,9.41586472,101.14,101.1,4.16505671]
[1770000400807,9.41586472,101.13,101.1,14.05619829]
[1770000401324,9.41586472,101.14,101.11,14.05521153]
[1770000401505,13.21147823,101.15,101.11,14.05521153]
[1770000401706,3.79561351,101.19,101.13,4.16505671]
[1770000401907,9.41586472,101.2,101.15,4.16505671]
[1770000402108,9.41586472,101.18,101.15,4.16505671]
[1770000402309,13.21147823,101.19,101.15,14.0512912]
[1770000402834,23.09235257,101.21,101.16,4.16505671]
[1770000403125,19.49579728,101.22,101.17,4.16505671]
[1770000403322,9.41586472,101.21,101.17,4.16505671]
[1770000404331,19.29652787,101.21,101.17,14.04896538]
[1770000406328,9.41586472,101.19,101.16,9.88499186]
[1770000406626,9.41586472,101.19,101.16,13.71872239]
[1770000406818,24.89867615,101.22,101.17,3.83373053]
[1770000406819,10.08010519,101.22,101.17,3.83373053]
[1770000407030,23.54232059,101.22,101.17,3.83373053]
[1770000407241,9.41586472,101.21,101.17,3.83373053]
[1770000407535,9.41586472,101.2,101.17,3.83373053]
[1770000407733,9.41586472,101.2,101.16,9.88499186]
[1770000407927,9.41586472,101.2,101.16,13.71872239]
[1770000408231,13.4622154,101.2,101.16,13.71872239]
[1770000408432,9.41586472,101.21,101.17,3.83373053]
[1770000408637,4.24635068,101.22,101.17,3.83373053]
[1770000408638,23.54210967,101.22,101.17,3.83373053]
[1770000408839,0.2,101.22,101.18,3.83373053]
[1770000409042,19.49549898,101.22,101.18,3.83373053]
[1770000409546,0.2,101.22,101.19,3.83373053]
[1770000409744,0.2,101.22,101.2,3.83373053]
[1770000410324,0.2,101.22,101.18,3.83373053]
[1770000410525,9.61586472,101.22,101.18,13.71634214]
[1770000410728,0.2,101.22,101.18,47.84064726]
[1770000411034,13.6622154,101.22,101.18,38.42478254]
[1770000411539,0.2,101.22,101.19,3.83373053]
[1770000411748,9.41586472,101.25,101.21,3.83373053]
[1770000411948,23.33835704,101.26,101.21,3.83373053]
[1770000412147,23.33722727,101.27,101.22,3.83373053]
[1770000412351,9.41586472,101.26,101.22,3.83373053]
[1770000412549,13.4622154,101.27,101.22,13.24959525]
[1770000412732,9.41586472,101.25,101.21,9.88044659]
[1770000413043,13.4622154,101.23,101.19,9.88214013]
[1770000413222,9.41586472,101.22,101.19,9.88214013]
[1770000413949,9.41586472,101.22,101.19,9.8822632]
[1770000414245,13.4622154,101.23,101.19,9.8822632]
[1770000414458,13.4622154,101.23,101.2,9.88130091]
[1770000414654,13.4622154,101.23,101.19,9.88239944]
[1770000414959,19.29370821,101.24,101.19,13.71612997]
[1770000415153,9.41586472,101.23,101.19,13.71612997]
[1770000415358,13.4622154,101.23,101.19,13.71612997]
[1770000415532,4.04635068,101.23,101.19,13.71612997]
[1770000415845,19.29370821,101.24,101.2,3.83373053]
[1770000416032,9.41586472,101.23,101.2,3.83373053]
[1770000416235,23.34005889,101.24,101.2,3.83373053]
[1770000416858,9.41586472,101.22,101.19,9.88203629]
[1770000417459,13.4622154,101.23,101.19,9.88203629]
[1770000418044,4.04635068,101.23,101.19,9.88203629]
[1770000418354,13.4622154,101.23,101.19,9.88203629]
[1770000418556,4.04635068,101.23,101.2,9.8814039]
[1770000418776,9.41586472,101.24,101.2,13.71513443]
[1770000418939,31.48635068,101.25,101.21,3.83373053]
[1770000419139,41.36297687,101.25,101.21,3.83373053]
[1770000419553,23.33884159,101.25,101.21,3.83373053]
[1770000419757,4.04635068,101.25,101.21,3.83373053]
[1770000420456,23.33728351,101.27,101.22,13.24959525]
[1770000420644,13.4622154,101.27,101.2,38.41869174]
[1770000420847,9.87338186,101.29,101.2,9.8807744]
[1770000420848,4.04635068,101.23,101.2,9.8807744]
[1770000421048,13.4622154,101.23,101.18,13.71657504]
[1770000421240,13.4622154,101.23,101.2,9.88130162]
[1770000421440,9.41586472,101.22,101.19,13.71562363]
[1770000421755,9.41586472,101.23,101.19,3.83373053]
[1770000422056,13.4622154,101.23,101.19,3.83373053]
[1770000422253,9.41586472,101.23,101.19,3.83373053]
[1770000422655,13.4622154,101.22,101.17,3.83373053]
[1770000422837,13.4622154,101.23,101.18,13.71633927]
[1770000423045,23.34085118,101.23,101.18,38.42477967]
[1770000423364,9.41586472,101.19,101.16,9.88469097]
[1770000423544,9.41586472,101.19,101.16,9.88450716]
[1770000424461,4.04635068,101.16,101.1,27.44]
[1770000424644,9.41586472,101.11,101.07,3.83373053]
[1770000424845,9.41586472,101.11,101.08,9.89314972]
[1770000425167,13.4622154,101.15,101.1,3.83373053]
[1770000425344,9.41586472,101.14,101.1,3.83373053]
[1770000425539,4.04635068,101.15,101.06,3.93373053]
[1770000425540,13.4622154,101.11,101.06,3.93373053]
[1770000425953,9.41586472,101.1,101.06,13.82849661]
[1770000426160,13.4622154,101.11,101.06,13.82849661]
[1770000426369,9.41586472,101.1,101.06,13.82849661]
[1770000426743,13.4622154,101.11,101.07,9.89413277]
[1770000427656,9.41586472,101.1,101.07,9.89413277]
[1770000427942,58.84740204,101.15,101.09,13.57203755]
[1770000427943,13.54709856,101.15,101.09,13.57203755]
[1770000428162,13.54709856,101.15,101.1,4.15617283]
[1770000428466,4.13123384,101.14,101.1,4.15617283]
[1770000428643,13.54709856,101.15,101.1,13.57203755]
[1770000428967,13.54709856,101.15,101.11,9.89021857]
[1770000429168,4.13123384,101.15,101.11,9.89021857]
[1770000429355,9.41586472,101.14,101.08,38.303884]
[1770000429560,13.54709856,101.13,101.08,4.15617283]
[1770000429759,9.41586472,101.11,101.07,4.15617283]
[1770000429952,13.54709856,101.12,101.08,9.89253518]
[1770000430261,13.54709856,101.1,101.06,14.15067912]
[1770000430557,9.41586472,101.1,101.06,14.15067912]
[1770000430759,13.54709856,101.1,101.06,14.15067912]
[1770000430965,23.43780764,101.11,101.06,14.15067912]
[1770000431148,9.41586472,101.1,101.06,4.25617283]
[1770000432070,14.02194292,101.11,101.06,0.1]
[1770000432071,13.54709856,101.08,101.06,0.1]
[1770000432251,9.41586472,101.07,101.03,14.0536779]
[1770000432462,13.54709856,101.09,101.04,4.15617283]
[1770000432661,13.54709856,101.09,101.05,9.89603826]
[1770000432849,23.43976961,101.09,101.05,9.89603826]
[1770000433189,9.41586472,101.08,101.04,14.05302866]
[1770000433365,13.54709856,101.06,101.02,4.15617283]
[1770000433758,13.54709856,101.08,101.03,13.57203755]
[1770000434070,9.41586472,101.09,101.05,4.15617283]
[1770000434461,4.13123384,101.1,101.05,13.57203755]
[1770000434971,14.02265378,101.1,101.06,19.31097653]
[1770000435270,4.13123384,101.1,101.06,9.89511181]
[1770000435472,14.02265916,101.1,101.06,9.89511181]
[1770000435849,14.02265916,101.1,101.06,14.05128464]
[1770000436057,23.43852388,101.1,101.05,23.46765599]
[1770000436563,4.13123384,101.09,101.05,23.46765599]
[1770000436752,4.13123384,101.05,101.01,4.15617283]
[1770000436952,9.41586472,101.05,101.02,9.89902989]
[1770000437375,9.89458845,101.07,101.03,4.15617283]
[1770000437569,13.54709856,101.06,101.01,23.47187998]
[1770000437758,13.54709856,101.06,101.01,14.05601526]
[1770000438079,13.54709856,101.06,101.01,19.31570715]
[1770000438374,4.13123384,101.06,101.02,13.57474836]
[1770000438675,52.19465287,101.08,101.01,34.64986718]
[1770000438676,23.44345505,101.08,101.03,13.57474836]
[1770000439159,4.13123384,101.07,101.03,14.05387673]
[1770000439359,13.54980937,101.07,101.03,14.05387673]
[1770000439568,13.54980937,101.07,101.02,9.89856066]
[1770000439770,13.54980937,101.07,101.02,14.05473349]
[1770000439966,9.89364568,101.08,101.03,23.47243956]
[1770000440168,9.89364568,101.08,101.04,9.41857553]
[1770000440360,4.13123384,101.08,101.03,48.21756477]
[1770000440556,4.13123384,101.08,101.04,13.57474836]
[1770000441066,4.13123384,101.08,101.03,34.64281641]
[1770000441276,4.13123384,101.07,101.03,34.64281641]
[1770000441574,4.13123384,101.07,101.03,48.21756477]
[1770000441876,23.44239184,101.09,101.04,9.41857553]
[1770000442073,13.54980937,101.08,101.03,48.21756477]
[1770000442257,13.54980937,101.07,101.03,9.8976912]
[1770000442756,13.54980937,101.07,101.02,14.0547383]
[1770000442955,13.44156569,101.07,101.02,14.0547383]
[1770000443778,19.31368734,101.06,101.02,14.0547383]
[1770000444179,9.89511181,101.06,101.02,14.0547383]
[1770000444377,12.45623636,101.08,101.02,48.22088856]
[1770000444679,9.41857553,101.1,101.05,13.57474836]
[1770000445185,13.54980937,101.1,101.05,13.57474836]
[1770000445879,50.91904987,101.12,101.07,14.0503056]
[1770000446076,41.50047434,101.12,101.07,14.0503056]
[1770000446275,41.02980937,101.12,101.07,23.46888113]
[1770000446490,13.54980937,101.11,101.07,14.0503056]
[1770000447175,4.13123384,101.11,101.07,14.0503056]
[1770000447486,9.41857553,101.15,101.09,13.57474836]